fUST/lending_fUST_20251107
["ID","MTS","AMOUNT","RATE_DAILY","PERIOD"]
[393320713,1762467846084,-6095.71803053,0.000458,120]
[393320714,1762467846109,-466.58463141,0.000459,120]
[393320715,1762467846134,-2000.0,0.000459,120]
[393320716,1762467846159,-1305.51281338,0.00045978,80]
[393320717,1762467846185,-156.0,0.00046,120]
[393320718,1762467846210,-1000.0,0.00046,120]
[393320719,1762467846235,-1133.0,0.00046,30]
[393320720,1762467846266,-172.143477,0.00046131,60]
[393320721,1762467846300,-150.0,0.00046168,30]
[393320722,1762467846330,-200.0,0.00046188,120]
[393320723,1762467846359,-400.0,0.00046192,50]
[393320724,1762467846387,-200.0,0.00046284,120]
[393320725,1762467846418,-999.0,0.00046301,120]
[393320726,1762467846446,-500.0,0.00046575,30]
[393320727,1762467846474,-686.7225,0.00046575,120]
[393320728,1762467849786,798.54616415,0.00046561,30]
[393320729,1762467867624,-500.0,0.00037146,7]
[393320730,1762467867654,-500.0,0.00037146,7]
[393320731,1762467867683,-500.0,0.00037146,7]
[393320732,1762467867712,-275.77442195,0.00037146,7]
[393320733,1762467867739,-500.74735514,0.00037146,7]
[393320734,1762467867767,-500.0,0.00037146,7]
[393320735,1762467867796,-500.0,0.00037146,7]
[393320736,1762467867825,-500.0,0.00037146,7]
[393320737,1762467867853,-500.0,0.00037146,7]
[393320738,1762467867880,-500.0,0.00037146,7]
[393320739,1762467867905,-500.0,0.00037146,7]
[393320740,1762467867930,-500.0,0.00037146,7]
[393320741,1762467867959,-500.0,0.00037146,7]
[393320742,1762467867990,-504.2607481,0.00037146,7]
[393320743,1762467868020,-500.0,0.00037146,10]
[393320744,1762467868049,-502.72707755,0.00037146,10]
[393320745,1762467868077,-500.0,0.00037146,15]
[393320746,1762467868103,-500.0,0.00037146,15]
[393320747,1762467868130,-500.0,0.00037146,15]
[393320748,1762467868157,-500.0,0.00037146,15]
[393320749,1762467868184,-500.0,0.00037146,15]
[393320750,1762467868211,-500.0,0.00037146,15]
[393320751,1762467868238,-500.0,0.00037146,15]
[393320752,1762467868265,-500.0,0.00037146,15]
[393320753,1762467868290,-500.0,0.00037146,15]
[393320754,1762467868438,-500.0,0.00037146,15]
[393320755,1762467868465,-500.0,0.00037146,15]
[393320756,1762467868494,-500.0,0.00037146,15]
[393320757,1762467868520,-500.0,0.00037146,15]
[393320758,1762467868547,-500.0,0.00037146,15]
[393320759,1762467868610,-500.0,0.00037146,15]
[393320760,1762467868665,-500.0,0.00037146,15]
[393320761,1762467868721,-500.0,0.00037146,15]
[393320762,1762467868784,-500.0,0.00037146,15]
[393320763,1762467868837,-500.0,0.00037146,15]
[393320764,1762467868889,-500.0,0.00037146,15]
[393320765,1762467868944,-250.81192228,0.00037146,15]
[393320766,1762467869000,-500.0,0.00037146,14]
[393320767,1762467869056,-500.78227625,0.00037146,14]
[393320768,1762467869108,-500.0,0.00037146,7]
[393320769,1762467869159,-500.0,0.00037146,7]
[393320770,1762467869207,-500.0,0.00037146,7]
[393320771,1762467869258,-500.0,0.00037146,7]
[393320772,1762467869308,-500.0,0.00037146,7]
[393320773,1762467869356,-500.0,0.00037146,7]
[393320774,1762467869405,-500.0,0.00037146,7]
[393320775,1762467869454,-500.0,0.00037146,7]
[393320776,1762467869505,-501.83516978,0.00037146,12]
[393320777,1762467869556,-500.0,0.00037146,7]
[393320778,1762467869608,-500.0,0.00037146,7]
[393320779,1762467869661,-252.61724752,0.00037146,7]
[393320780,1762467869714,-500.0,0.00037146,12]
[393320781,1762467869765,-477.73601918,0.00037146,12]
[393320782,1762467869817,-500.0,0.00037146,7]
[393320783,1762467869867,-500.0,0.00037146,7]
[393320784,1762467869918,-500.0,0.00037146,7]
[393320785,1762467869968,-500.0,0.00037146,7]
[393320786,1762467870023,-500.0,0.00037146,7]
[393320787,1762467870082,-500.0,0.00037146,7]
[393320788,1762467870139,-500.0,0.00037146,7]
[393320789,1762467870191,-500.0,0.00037146,7]
[393320790,1762467870241,-500.0,0.00037146,7]
[393320791,1762467870288,-500.0,0.00037146,7]
[393320792,1762467870336,-500.0,0.00037146,7]
[393320793,1762467870384,-500.0,0.00037146,7]
[393320794,1762467870435,-213.03224302,0.00037146,7]
[393320795,1762467870486,-500.0,0.00037146,7]
[393320796,1762467870540,-500.0,0.00037146,7]
[393320798,1762467870588,-500.0,0.00037146,7]
[393320799,1762467870639,-500.0,0.00037146,7]
[393320800,1762467870692,-124618.3252792,0.00037146,7]
[393320801,1762467870744,-31592.28933776,0.00037146,7]
[393320802,1762467870797,-500.0,0.00037146,7]
[393320803,1762467870851,-500.0,0.00037146,7]
[393320804,1762467870903,-500.0,0.00037146,7]
[393320806,1762467870963,-500.0,0.00037146,7]
[393320807,1762467871039,-500.0,0.00037146,7]
[393320808,1762467871113,-500.0,0.00037146,7]
[393320809,1762467871183,-500.0,0.00037146,7]
[393320810,1762467871245,-500.0,0.00037146,7]
[393320811,1762467871305,-500.0,0.00037146,7]
[393320813,1762467871358,-500.0,0.00037146,7]
[393320814,1762467871410,-500.0,0.00037146,7]
[393320815,1762467871462,-639.9495606,0.00037146,7]
[393320816,1762467871514,-555.53,0.00037146,15]
[393320817,1762467871564,-500.0,0.00037146,7]
[393320818,1762467871617,-634.85,0.00037146,7]
[393320819,1762467871679,-250.0,0.00037146,10]
[393320821,1762467871735,-250.0,0.00037146,10]
[393320822,1762467871792,-250.0,0.00037146,10]
[393320823,1762467871843,-454.358953,0.00037146,10]
[393320826,1762467987320,370.0,0.00037146,120]
[393320859,1762468231671,-150.0,0.00015481,2]
[393320860,1762468231680,-232.29027402,0.00015526,2]
[393320864,1762468231787,-558.76753725,0.00015526,2]
[393320866,1762468231798,-505.8,0.00015526,2]
[393320868,1762468231809,-2063.13445717,0.00015526,2]
[393320870,1762468231818,-300.0,0.00015621,2]
[393320872,1762468231827,-300.0,0.00015621,2]
[393320874,1762468231836,-300.0,0.00015621,2]
[393320876,1762468231845,-1200.0,0.00015621,2]
[393320878,1762468231854,-15399.82726778,0.00015622,2]
[393321001,1762468237615,-161.22930181,0.00015621,2]
[393321003,1762468237625,-8025.06233078,0.00015622,2]
[393321005,1762468237635,-1200.0,0.00015622,2]
[393321007,1762468237643,-171.303,0.00015623,2]
[393321008,1762468237652,-69212.98346007,0.00015623,2]
[393321009,1762468237661,-171.54624885,0.00015663,2]
[393321010,1762468237670,-151.0,0.00015663,2]
[393321011,1762468237680,-151.0,0.00015663,2]
[393321012,1762468237688,-151.0,0.00015663,2]
[393321013,1762468237697,-151.0,0.00015663,2]
[393321014,1762468237706,-151.0,0.00015663,2]
[393321015,1762468237715,-151.0,0.00015663,2]
[393321016,1762468237724,-151.0,0.00015663,2]
[393321017,1762468237733,-151.0,0.00015663,2]
[393321018,1762468237742,-151.0,0.00015663,2]
[393321019,1762468237751,-151.0,0.00015663,2]
[393321020,1762468237760,-151.0,0.00015663,2]
[393321021,1762468237768,-151.0,0.00015663,2]
[393321022,1762468237778,-151.0,0.00015663,2]
[393321023,1762468237786,-151.0,0.00015663,2]
[393321024,1762468237795,-151.0,0.00015663,2]
[393321025,1762468237804,-256.14351418,0.00015663,2]
[393321026,1762468237813,-151.0,0.00015664,2]
[393321027,1762468237822,-151.0,0.00015664,2]
[393321028,1762468237831,-151.0,0.00015664,2]
[393321029,1762468237841,-151.0,0.00015664,2]
[393321030,1762468237850,-151.0,0.00015664,2]
[393321031,1762468237861,-151.0,0.00015664,2]
[393321032,1762468237870,-151.0,0.00015664,2]
[393321033,1762468237879,-151.0,0.00015664,2]
[393321034,1762468237889,-151.0,0.00015664,2]
[393321035,1762468237900,-151.0,0.00015664,2]
[393321036,1762468237911,-500.0,0.00015664,2]
[393321037,1762468237920,-151.0,0.00015664,2]
[393321038,1762468237930,-151.0,0.00015664,2]
[393321039,1762468237939,-151.0,0.00015664,2]
[393321040,1762468237948,-417.38941945,0.00015673,2]
[393321041,1762468237957,-500.0,0.00015673,2]
[393321042,1762468237966,-500.0,0.00015673,2]
[393321043,1762468237975,-24803.39132723,0.00015673,2]
[393321044,1762468237986,-1002.68140323,0.00015673,2]
[393321047,1762468239855,-1202.22657072,0.00015673,2]
[393321052,1762468242843,-68361.3676531,0.00015673,2]
[393321053,1762468242855,-3243.90000001,0.00015673,2]
[393321054,1762468242903,-50724.5439201,0.00015673,2]
[393321055,1762468243017,-793.32116082,0.00015673,2]
[393321067,1762468266395,578.08930732,0.00037169,120]
[393321075,1762468503204,10000.0,0.00027397,120]
[393321078,1762468645916,500.0,0.00037155,60]
[393321079,1762468646321,500.0,0.00037155,60]
[393321080,1762468646684,550.57354516,0.00037155,60]
[393321085,1762468774836,500.0,0.00037155,60]
[393321086,1762468775219,500.0,0.00037155,60]
[393321087,1762468775597,500.0,0.00037155,60]
[393321088,1762468776024,500.0,0.00037155,60]
[393321089,1762468776412,500.0,0.00037155,60]
[393321090,1762468776783,500.0,0.00037155,60]
[393321091,1762468777158,500.0,0.00037155,60]
[393321092,1762468777544,500.0,0.00037155,60]
[393321093,1762468777853,500.0,0.00037155,60]
[393321094,1762468777926,500.0,0.00037155,60]
[393321095,1762468778275,500.0,0.00037155,60]
[393321096,1762468778328,500.0,0.00037155,60]
[393321097,1762468782721,221.14,0.00037155,60]
[393321138,1762469431944,-335.3906348,0.00014583,2]
[393321140,1762469431953,-150.0,0.00014805,2]
[393321142,1762469431963,-1802.6410312,0.00015467,2]
[393321183,1762469437893,-1012.2,0.00015467,2]
[393321184,1762469437904,-125.15220365,0.00015467,2]
[393321185,1762469437915,-222.42509874,0.00015565,2]
[393321186,1762469437926,-300.0,0.00015565,2]
[393321187,1762469437936,-1200.0,0.00015565,2]
[393321188,1762469437945,-19661.51777276,0.00015566,2]
[393321189,1762469437956,-29963.83881267,0.00015566,2]
[393321190,1762469437967,-500.0,0.00015573,2]
[393321191,1762469437977,-17010.44025998,0.00015573,2]
[393321192,1762469437988,-5497.05552206,0.00015573,2]
[393321193,1762469437999,-52560.60918034,0.00015573,2]
[393321195,1762469440045,-494.99223144,0.00015565,2]
[393321196,1762469440055,-500.0,0.00015565,2]
[393321197,1762469440064,-500.0,0.00015565,2]
[393321198,1762469440073,-500.0,0.00015565,2]
[393321199,1762469440083,-379.42355861,0.00015565,2]
[393321200,1762469440092,-500.0,0.00015565,2]
[393321201,1762469440102,-500.0,0.00015565,2]
[393321202,1762469440111,-500.0,0.00015565,2]
[393321203,1762469440120,-500.0,0.00015565,2]
[393321204,1762469440130,-500.0,0.00015565,2]
[393321205,1762469440140,-500.0,0.00015565,2]
[393321206,1762469440149,-500.0,0.00015565,2]
[393321207,1762469440159,-500.0,0.00015565,2]
[393321208,1762469440168,-500.0,0.00015565,2]
[393321210,1762469440178,-500.0,0.00015565,2]
[393321211,1762469440187,-24.66187801,0.00015565,2]
[393321212,1762469440198,-441.17852304,0.00015565,2]
[393321213,1762469440214,-34.15959895,0.00015565,2]
[393321214,1762469440223,-484.66187801,0.00015565,2]
[393321215,1762469440234,-15.33812199,0.00015565,2]
[393321216,1762469440243,-500.0,0.00015565,2]
[393321217,1762469440252,-500.0,0.00015565,2]
[393321218,1762469440261,-500.0,0.00015565,2]
[393321219,1762469440271,-176.58101895,0.00015565,2]
[393321231,1762469446522,-323.41898105,0.00015565,2]
[393321232,1762469446533,-500.0,0.00015565,2]
[393321233,1762469446543,-500.0,0.00015565,2]
[393321234,1762469446552,-500.0,0.00015565,2]
[393321235,1762469446561,-500.0,0.00015565,2]
[393321236,1762469446570,-500.0,0.00015565,2]
[393321237,1762469446580,-500.0,0.00015565,2]
[393321238,1762469446589,-500.0,0.00015565,2]
[393321239,1762469446599,-500.0,0.00015565,2]
[393321240,1762469446608,-500.0,0.00015565,2]
[393321241,1762469446711,-500.0,0.00015565,2]
[393321242,1762469446723,-500.0,0.00015565,2]
[393321243,1762469446733,-500.0,0.00015565,2]
[393321244,1762469446742,-500.0,0.00015565,2]
[393321245,1762469446751,-500.0,0.00015565,2]
[393321246,1762469446760,-500.0,0.00015565,2]
[393321247,1762469446769,-500.0,0.00015565,2]
[393321248,1762469446778,-500.0,0.00015565,2]
[393321249,1762469446786,-500.0,0.00015565,2]
[393321250,1762469446796,-77.34196289,0.00015565,2]
[393321254,1762469933618,162.56,0.00032877,120]
[393321255,1762469945091,150.0,0.00023024,30]
[393321257,1762470072832,313.0,0.00037154,120]
[393321298,1762470600549,741.695045,0.00013699,2]
[393321345,1762470632194,-150.0,0.00015244,2]
[393321347,1762470632204,-152.52043825,0.00015312,2]
[393321349,1762470632216,-646.0257259,0.00015312,2]
[393321351,1762470632226,-300.0,0.00015466,2]
[393321354,1762470632235,-295.461678,0.00015466,2]
[393321359,1762470632274,-348.96969455,0.00015466,2]
[393321361,1762470632289,-555.56862745,0.00015466,2]
[393321363,1762470632299,-1087.9040209,0.00015467,2]
[393321376,1762470633208,500.0,0.00037154,60]
[393321396,1762470637969,-500.0,0.00015466,2]
[393321397,1762470637978,-500.0,0.00015466,2]
[393321398,1762470637988,-500.0,0.00015466,2]
[393321399,1762470637997,-288.31144985,0.00015466,2]
[393321400,1762470638009,-211.68855015,0.00015466,2]
[393321401,1762470638018,-500.0,0.00015466,2]
[393321402,1762470638028,-500.0,0.00015466,2]
[393321403,1762470638037,-500.0,0.00015466,2]
[393321404,1762470638046,-161.56972439,0.00015466,2]
[393321405,1762470638058,-338.43027561,0.00015466,2]
[393321406,1762470638067,-31.27069718,0.00015466,2]
[393321407,1762470638078,-468.72930282,0.00015466,2]
[393321408,1762470638088,-500.0,0.00015466,2]
[393321409,1762470638097,-500.0,0.00015466,2]
[393321410,1762470638106,-334.56855321,0.00015466,2]
[393321411,1762470638788,598.56,0.00037154,60]
[393321560,1762470641527,500.0,0.00037154,60]
[393321765,1762470643399,-165.43144679,0.00015466,2]
[393321767,1762470643409,-500.0,0.00015466,2]
[393321769,1762470643418,-252.58354111,0.00015466,2]
[393322513,1762470657585,320.84,0.00037154,60]
[393322514,1762470662707,329.62421995,0.00037154,60]
[393322515,1762470667905,500.0,0.00037154,60]
[393322516,1762470670764,500.0,0.00037154,60]
[393322517,1762470670799,500.0,0.00037154,60]
[393322518,1762470673719,500.0,0.00037154,60]
[393322519,1762470674976,513.83,0.00037154,60]
[393322520,1762470681921,500.0,0.00037154,60]
[393322521,1762470682354,500.0,0.00037154,60]
[393322522,1762470682387,500.0,0.00037154,60]
[393322523,1762470682746,406.68,0.00037154,60]
[393322524,1762470716098,500.0,0.00037154,60]
[393322525,1762470716716,500.0,0.00037154,60]
[393322526,1762470717116,500.0,0.00037154,60]
[393322527,1762470721918,500.0,0.00037154,60]
[393322528,1762470748075,545.69879187,0.00037154,60]
[393322529,1762470767119,348.25987539,0.00037154,60]
[393322530,1762470768591,212.58833338,0.00037154,60]
[393322536,1762470790515,500.0,0.00037154,60]
[393322537,1762470796684,500.0,0.00037154,60]
[393322543,1762470799982,500.0,0.00037154,60]
[393322549,1762470801973,500.0,0.00037154,60]
[393322551,1762470802309,500.0,0.00037154,60]
[393322561,1762470805926,500.0,0.00037154,60]
[393322569,1762470817415,500.0,0.00037154,60]
[393322570,1762470819127,500.0,0.00037154,60]
[393322571,1762470822705,500.0,0.00037154,60]
[393322572,1762470824858,500.0,0.00037154,60]
[393322573,1762470825231,575.54,0.00037154,60]
[393322574,1762470866671,500.0,0.00037154,60]
[393322575,1762470873997,500.0,0.00037154,60]
[393322599,1762470960761,539.54481959,0.00037152,60]
[393322601,1762470974616,500.0,0.00037152,60]
[393322602,1762470975010,500.0,0.00037152,60]
[393322603,1762471031780,561.83,0.00037152,60]
[393322605,1762471115128,500.0,0.00037152,60]
[393322606,1762471115505,168.3158469,0.00037152,60]
[393322609,1762471160181,-48.0,0.00035,120]
[393322610,1762471161375,-96.0,0.00035,120]
[393322611,1762471161431,-8.0,0.00035,120]
[393322612,1762471161458,-200.0,0.00035729,120]
[393322613,1762471161486,-200.0,0.00036319,120]
[393322614,1762471161513,-200.0,0.00036552,120]
[393322615,1762471161540,-152.0,0.000368,120]
[393322616,1762471161575,-200.0,0.00037159,120]
[393322617,1762471161602,-180.76307226,0.000372,120]
[393322618,1762471161687,-1219.1436061,0.000372,120]
[393322619,1762471161713,-176.25505289,0.000372,120]
[393322620,1762471161740,-163.42950573,0.000372,120]
[393322621,1762471161766,-155.62466233,0.000372,120]
[393322622,1762471162016,-21.79594058,0.000372,120]
[393322623,1762471162250,-383.14469801,0.000372,120]
[393322624,1762471162277,-161.5606258,0.000372,120]
[393322625,1762471162304,-228.28496996,0.000372,120]
[393322626,1762471162330,-176.77246861,0.000372,120]
[393322627,1762471162542,-22.99837295,0.000372,120]
[393322628,1762471162559,-148.6658375,0.000372,120]
[393322629,1762471162569,-12.8947883,0.000372,120]
[393322630,1762471162585,-228.02781704,0.000372,120]
[393322631,1762471162594,-0.25715292,0.000372,120]
[393322632,1762471162611,-171.0830237,0.000372,120]
[393322633,1762471162619,-5.68944491,0.0003724,120]
[393322634,1762471162635,-100.47447524,0.0003724,120]
[393322635,1762471164665,-81.16392015,0.0003724,120]
[393322636,1762471164738,-12.6721597,0.0003724,120]
[393322637,1762471164852,-12.6721597,0.000379,120]
[393322638,1762471164906,-1974.6556806,0.000379,120]
[393322639,1762471165006,-12.6721597,0.000379,120]
[393322640,1762471165035,-180.76307226,0.000383,120]
[393322641,1762471165069,-1219.1436061,0.000383,120]
[393322642,1762471165098,-176.25505289,0.000383,120]
[393322643,1762471165126,-109.60430705,0.000383,120]
[393322644,1762471165237,-53.82519868,0.000383,120]
[393322646,1762471176993,176.77246862,0.000372,120]
[393322647,1762471177307,23.22753138,0.000372,120]
[393322648,1762471177330,148.43667907,0.000372,120]
[393322649,1762471184065,500.0,0.00037152,60]
[393322650,1762471184462,500.0,0.00037152,60]
[393322651,1762471184843,500.0,0.00037152,60]
[393322652,1762471185263,347.0,0.00037152,60]
[393322653,1762471185828,192.73808427,0.000372,120]
[393322654,1762471186080,171.34017662,0.000372,120]
[393322655,1762471191260,1950.62976976,0.000372,120]
[393322656,1762471200556,163.42950572,0.000372,120]
[393322657,1762471202209,177.42060291,0.000372,120]
[393322658,1762471202442,306.51575841,0.000372,120]
[393322659,1762471220886,182.62797597,0.000372,120]
[393322660,1762471221721,157.56304195,0.000372,120]
[393322662,1762471225440,157.0,0.00035,120]
[393322663,1762471226866,43.0,0.00037,120]
[393322664,1762471226888,114.0,0.00037,120]
[393322666,1762471258337,2572.49408052,0.00014419,2]
[393322667,1762471278365,300.0,0.00014373,2]
[393322668,1762471285968,-153.95800204,0.00026295,30]
[393322669,1762471286080,-188.408,0.00030464,26]
[393322670,1762471286111,-186.88296595,0.000332,117]
[393322671,1762471286140,-98.6780681,0.00034406,60]
[393322672,1762471286239,-52.0619319,0.00034406,60]
[393322673,1762471286443,-150.74,0.00034506,60]
[393322674,1762471286673,-404.29,0.000342,14]
[393322675,1762471286702,-150.74,0.00034606,60]
[393322676,1762471286730,-33.89816744,0.00034706,60]
[393322677,1762471286808,-116.84183256,0.00034706,60]
[393322678,1762471286838,-150.74,0.00034806,60]
[393322679,1762471286867,-150.74,0.00034906,60]
[393322680,1762471286979,-1000.0,0.00035,20]
[393322681,1762471289880,86.0,0.00037159,120]
[393322682,1762471293887,300.0,0.00014373,2]
[393322683,1762471293929,303.96741531,0.00014191,2]
[393322684,1762471301676,162.75728168,0.00014373,2]
[393322685,1762471313704,1369.84797091,0.00014419,2]
[393322686,1762471317276,300.0,0.00014373,2]
[393322687,1762471340127,300.0,0.00014373,2]
[393322688,1762471343683,154.0,0.00035,120]
[393322689,1762471362465,11798.68403039,0.00014372,2]
[393322769,1762471416018,284.99745029,0.00014191,2]
[393322770,1762471418308,325.38566039,0.00014191,2]
[393322771,1762471518658,2250.93232042,0.00014416,2]
[393322850,1762471653884,1095.87837672,0.00014416,2]
[393322887,1762471676295,550.8182673,0.00013519,2]
[393322897,1762471768932,1969.56578042,0.00014415,2]
[393322999,1762471838183,-155.69756912,0.00014514,2]
[393323001,1762471838192,-104.63129759,0.00014514,2]
[393323004,1762471838204,-195.36870241,0.00014514,2]
[393323006,1762471838213,-300.0,0.00014514,2]
[393323017,1762471838325,-300.0,0.00014514,2]
[393323019,1762471838335,-1200.0,0.00014514,2]
[393323021,1762471838344,-150.0,0.00014514,2]
[393323024,1762471838355,-500.0,0.00014518,2]
[393323026,1762471838364,-500.0,0.00014518,2]
[393323028,1762471838373,-163.10650474,0.00014518,2]
[393323475,1762471843452,-500.0,0.00014514,2]
[393323477,1762471843462,-500.0,0.00014514,2]
[393323479,1762471843472,-500.0,0.00014514,2]
[393323481,1762471843480,-500.0,0.00014514,2]
[393323483,1762471843489,-500.0,0.00014514,2]
[393323485,1762471843498,-500.0,0.00014514,2]
[393323487,1762471843507,-500.0,0.00014514,2]
[393323489,1762471843516,-500.0,0.00014514,2]
[393323491,1762471843525,-500.0,0.00014514,2]
[393323493,1762471843534,-500.0,0.00014514,2]
[393323495,1762471843543,-243.25426181,0.00014514,2]
[393323497,1762471843552,-625.49553255,0.00014514,2]
[393323499,1762471843564,-500.0,0.00014514,2]
[393323502,1762471843573,-500.0,0.00014514,2]
[393323505,1762471843582,-500.0,0.00014514,2]
[393323508,1762471843591,-628.02755568,0.00014514,2]
[393323510,1762471843600,-500.0,0.00014514,2]
[393323512,1762471843609,-500.0,0.00014514,2]
[393323514,1762471843618,-500.0,0.00014514,2]
[393323516,1762471843627,-500.0,0.00014514,2]
[393323518,1762471843637,-500.0,0.00014514,2]
[393323520,1762471843646,-500.0,0.00014514,2]
[393323522,1762471843655,-500.0,0.00014514,2]
[393323524,1762471843663,-500.0,0.00014514,2]
[393323526,1762471843672,-500.0,0.00014514,2]
[393323528,1762471843681,-500.0,0.00014514,2]
[393323530,1762471843691,-500.0,0.00014514,2]
[393323532,1762471843700,-500.0,0.00014514,2]
[393323534,1762471843709,-500.0,0.00014514,2]
[393323536,1762471843718,-500.0,0.00014514,2]
[393323538,1762471843727,-500.0,0.00014514,2]
[393323540,1762471843736,-500.0,0.00014514,2]
[393323542,1762471843745,-550.0,0.00014514,2]
[393323544,1762471843754,-500.0,0.00014514,2]
[393323546,1762471843763,-500.0,0.00014514,2]
[393323548,1762471843772,-500.0,0.00014514,2]
[393323550,1762471843782,-500.0,0.00014514,2]
[393323552,1762471843791,-500.0,0.00014514,2]
[393323554,1762471843800,-500.0,0.00014514,2]
[393323556,1762471843809,-500.0,0.00014514,2]
[393323559,1762471843819,-500.0,0.00014514,2]
[393323560,1762471843828,-500.0,0.00014514,2]
[393323563,1762471843838,-500.0,0.00014514,2]
[393323565,1762471843847,-500.0,0.00014514,2]
[393323567,1762471843857,-500.0,0.00014514,2]
[393323569,1762471843866,-500.0,0.00014514,2]
[393323571,1762471843875,-500.0,0.00014514,2]
[393323573,1762471843884,-500.0,0.00014514,2]
[393323575,1762471843894,-500.0,0.00014514,2]
[393323577,1762471843903,-500.0,0.00014514,2]
[393323579,1762471843912,-500.0,0.00014514,2]
[393323581,1762471843922,-500.0,0.00014514,2]
[393323583,1762471843931,-500.0,0.00014514,2]
[393323585,1762471843940,-500.0,0.00014514,2]
[393323587,1762471843950,-500.0,0.00014514,2]
[393323589,1762471843959,-500.0,0.00014514,2]
[393323591,1762471843969,-500.0,0.00014514,2]
[393323593,1762471843979,-500.0,0.00014514,2]
[393323595,1762471843988,-500.0,0.00014514,2]
[393323597,1762471843998,-500.0,0.00014514,2]
[393323599,1762471844007,-500.0,0.00014514,2]
[393323600,1762471844016,-500.0,0.00014514,2]
[393323601,1762471844025,-500.0,0.00014514,2]
[393323602,1762471844035,-500.0,0.00014514,2]
[393323603,1762471844043,-500.0,0.00014514,2]
[393323604,1762471844053,-500.0,0.00014514,2]
[393323605,1762471844062,-500.0,0.00014514,2]
[393323606,1762471844071,-500.0,0.00014514,2]
[393323607,1762471844079,-500.0,0.00014514,2]
[393323608,1762471844088,-500.0,0.00014514,2]
[393323609,1762471844097,-500.0,0.00014514,2]
[393323610,1762471844106,-200.0,0.00014514,2]
[393323611,1762471844115,-500.0,0.00014514,2]
[393323612,1762471844123,-500.0,0.00014514,2]
[393323613,1762471844132,-500.0,0.00014514,2]
[393323614,1762471844141,-500.0,0.00014514,2]
[393323615,1762471844150,-500.0,0.00014514,2]
[393323616,1762471844159,-500.0,0.00014514,2]
[393323617,1762471844167,-500.0,0.00014514,2]
[393323618,1762471844176,-500.0,0.00014514,2]
[393323619,1762471844185,-500.0,0.00014514,2]
[393323621,1762471844194,-500.0,0.00014514,2]
[393323623,1762471844203,-500.0,0.00014514,2]
[393323625,1762471844212,-167.57583846,0.00014514,2]
[393323627,1762471844222,-500.0,0.00014514,2]
[393323629,1762471844235,-500.0,0.00014514,2]
[393323631,1762471844244,-500.0,0.00014514,2]
[393323633,1762471844253,-500.0,0.00014514,2]
[393323635,1762471844263,-500.0,0.00014514,2]
[393323637,1762471844272,-500.0,0.00014514,2]
[393323639,1762471844282,-500.0,0.00014514,2]
[393323641,1762471844291,-336.89349526,0.00014518,2]
[393323643,1762471844300,-500.0,0.00014518,2]
[393323645,1762471844312,-500.0,0.00014518,2]
[393323647,1762471844321,-500.0,0.00014518,2]
[393323649,1762471844331,-500.0,0.0001452,2]